[Event "Blixt-SM 2021"]
[Site "Elite Hotel Marina Plaza, Kungstorget 6, Helsingborg, Sweden"]
[Date "2021.11.14"]
[Round "4.1"]
[White "Neretljak, Nedzad"]
[Black "Jepson, Christian"]
[Result "0-1"]
[TimeControl "3 minutes + 2 seconds per move."]
[BlackTitle "IM"]
[WhiteFideId "1713132"]
[BlackFideId "1701185"]
[WhiteElo "2148"]
[BlackElo "2412"]

1. e4 {[%clk 00:03:03]} e6 {[%clk 00:03:03]} {[%emt 00:00:01]} 2. d4 {[%clk
00:03:04]} {[%emt 00:00:02]} d5 {[%clk 00:03:05]} 3. e5 {[%clk 00:03:05]} c5
{[%clk 00:03:06]} 4. c3 {[%clk 00:03:06]} Nc6 {[%clk 00:03:08]} 5. Nf3 {[%clk
00:03:07]} Nh6 {[%clk 00:03:09]} 6. Bd3 {[%clk 00:03:07]} {[%emt 00:00:02]} f6
{[%clk 00:03:11]} {[%emt 00:00:01]} 7. O-O {[%clk 00:03:05]} {[%emt 00:00:03]}
Nf7 {[%clk 00:03:12]} 8. Re1 {[%clk 00:03:06]} {[%emt 00:00:02]} fxe5 {[%clk
00:03:13]} {[%emt 00:00:02]} 9. dxe5 {[%clk 00:03:06]} {[%emt 00:00:01]} Be7
{[%clk 00:03:13]} {[%emt 00:00:02]} 10. a3 {[%clk 00:03:07]} {[%emt 00:00:01]}
a5 {[%clk 00:03:10]} {[%emt 00:00:05]} 11. Nbd2 {[%clk 00:03:05]} {[%emt
00:00:03]} Qc7 {[%clk 00:03:08]} {[%emt 00:00:05]} 12. Nf1 {[%clk 00:03:01]}
{[%emt 00:00:05]} Bd7 {[%clk 00:03:01]} {[%emt 00:00:10]} 13. Bf4 {[%clk
00:03:01]} {[%emt 00:00:02]} g5 {[%clk 00:02:59]} {[%emt 00:00:04]} 14. Bg3
{[%clk 00:03:00]} {[%emt 00:00:03]} h5 {[%clk 00:02:54]} {[%emt 00:00:07]} 15.
h4 {[%clk 00:02:57]} {[%emt 00:00:04]} g4 {[%clk 00:02:53]} {[%emt 00:00:04]}
16. N3d2 {[%clk 00:02:41]} {[%emt 00:00:18]} O-O-O {[%clk 00:02:32]} {[%emt
00:00:23]} 17. b4 {[%clk 00:02:42]} {[%emt 00:00:02]} c4 {[%clk 00:02:29]}
{[%emt 00:00:05]} 18. Bc2 {[%clk 00:02:42]} Ncxe5 {[%clk 00:02:19]} {[%emt
00:00:13]} 19. bxa5 {[%clk 00:02:36]} {[%emt 00:00:08]} Bd6 {[%clk 00:02:17]}
{[%emt 00:00:04]} 20. Rb1 {[%clk 00:02:27]} {[%emt 00:00:11]} Qxa5 {[%clk
00:02:13]} {[%emt 00:00:06]} 21. Ne3 {[%clk 00:02:15]} {[%emt 00:00:14]} b5
{[%clk 00:02:05]} {[%emt 00:00:10]} 22. a4 {[%clk 00:02:10]} {[%emt 00:00:07]}
bxa4 {[%clk 00:02:04]} {[%emt 00:00:03]} 23. Ndf1 {[%clk 00:02:11]} Kc7 {[%clk
00:02:01]} {[%emt 00:00:06]} 24. Nxd5+ {[%clk 00:02:09]} {[%emt 00:00:03]} Qxd5
{[%clk 00:01:56]} {[%emt 00:00:07]} 25. Qe2 {[%clk 00:02:00]} {[%emt 00:00:11]}
Nd3 {[%clk 00:01:45]} {[%emt 00:00:13]} 26. Ne3 {[%clk 00:01:50]} {[%emt
00:00:11]} Qc5 {[%clk 00:01:46]} {[%emt 00:00:02]} 27. Nxc4 {[%clk 00:01:24]}
{[%emt 00:00:28]} Bxg3 {[%clk 00:01:35]} {[%emt 00:00:13]} 28. Bxd3 {[%clk
00:01:22]} {[%emt 00:00:04]} Bxh4 {[%clk 00:01:16]} {[%emt 00:00:22]} 29. Be4
{[%clk 00:01:14]} {[%emt 00:00:09]} Rb8 {[%clk 00:01:12]} {[%emt 00:00:05]} 30.
Rbd1 {[%clk 00:01:09]} {[%emt 00:00:07]} g3 {[%clk 00:01:04]} {[%emt 00:00:11]}
31. Rf1 {[%clk 00:00:57]} {[%emt 00:00:14]} gxf2+ {[%clk 00:01:05]} {[%emt
00:00:01]} 32. Kh1 {[%clk 00:00:57]} {[%emt 00:00:01]} Ng5 {[%clk 00:00:49]}
{[%emt 00:00:18]} 33. Rd4 {[%clk 00:00:45]} {[%emt 00:00:13]} Bg3 {[%clk
00:00:36]} {[%emt 00:00:15]} 34. Ne3 {[%clk 00:00:42]} {[%emt 00:00:05]} Bb5
{[%clk 00:00:34]} {[%emt 00:00:05]} 35. Qf3 {[%clk 00:00:32]} {[%emt 00:00:12]}
Nxf3 {[%clk 00:00:34]} {[%emt 00:00:02]} 0-1

[Event "Blixt-SM 2021"]
[Site "Elite Hotel Marina Plaza, Kungstorget 6, Helsingborg, Sweden"]
[Date "2021.11.14"]
[Round "5.8"]
[White "Kucuksari, Kaan"]
[Black "Nord, Alexander"]
[Result "1-0"]
[TimeControl "3 minutes + 2 seconds per move."]
[WhiteTitle "FM"]
[WhiteFideId "6380166"]
[BlackFideId "1738135"]
[WhiteElo "2301"]
[BlackElo "1909"]

1. d4 {[%clk 00:03:03]} Nf6 {[%clk 00:03:03]} {[%emt 00:00:01]} 2. c4 {[%clk
00:03:05]} e6 {[%clk 00:03:04]} {[%emt 00:00:02]} 3. g3 {[%clk 00:03:06]} d5
{[%clk 00:03:03]} {[%emt 00:00:03]} 4. Nf3 {[%clk 00:03:07]} dxc4 {[%clk
00:03:02]} {[%emt 00:00:02]} 5. Bg2 {[%clk 00:03:08]} Bd7 {[%clk 00:03:03]}
{[%emt 00:00:02]} 6. Ne5 {[%clk 00:03:09]} {[%emt 00:00:01]} Bc6 {[%clk
00:03:04]} 7. Nxc6 {[%clk 00:03:10]} Nxc6 {[%clk 00:03:05]} {[%emt 00:00:01]} 8.
e3 {[%clk 00:03:11]} Qd7 {[%clk 00:03:04]} {[%emt 00:00:03]} 9. O-O {[%clk
00:03:10]} {[%emt 00:00:02]} O-O-O {[%clk 00:02:57]} {[%emt 00:00:09]} 10. Nc3
{[%clk 00:03:11]} {[%emt 00:00:01]} h5 {[%clk 00:02:48]} {[%emt 00:00:11]} 11.
b3 {[%clk 00:03:10]} {[%emt 00:00:04]} Bb4 {[%clk 00:02:32]} {[%emt 00:00:17]}
12. Nb5 {[%clk 00:03:08]} {[%emt 00:00:04]} Kb8 {[%clk 00:01:46]} {[%emt
00:00:49]} 13. bxc4 {[%clk 00:03:06]} {[%emt 00:00:03]} a6 {[%clk 00:01:37]}
{[%emt 00:00:12]} 14. Rb1 {[%clk 00:03:06]} {[%emt 00:00:02]} axb5 {[%clk
00:00:53]} {[%emt 00:00:45]} 15. cxb5 {[%clk 00:03:06]} {[%emt 00:00:02]} Ne7
{[%clk 00:00:52]} {[%emt 00:00:03]} 16. Rxb4 {[%clk 00:03:06]} {[%emt
00:00:02]} Ned5 {[%clk 00:00:50]} {[%emt 00:00:04]} 17. Rb3 {[%clk 00:02:58]}
{[%emt 00:00:11]} h4 {[%clk 00:00:50]} {[%emt 00:00:02]} 18. e4 {[%clk
00:02:52]} {[%emt 00:00:07]} Nb6 {[%clk 00:00:51]} {[%emt 00:00:01]} 19. Bf4
{[%clk 00:02:38]} {[%emt 00:00:17]} hxg3 {[%clk 00:00:43]} {[%emt 00:00:10]} 20.
Bxg3 {[%clk 00:02:34]} {[%emt 00:00:06]} Nh5 {[%clk 00:00:40]} {[%emt
00:00:04]} 21. Rb4 {[%clk 00:01:26]} {[%emt 00:01:10]} g5 {[%clk 00:00:40]}
{[%emt 00:00:02]} 22. a4 {[%clk 00:01:22]} {[%emt 00:00:06]} Nf4 {[%clk
00:00:21]} {[%emt 00:00:21]} 23. a5 {[%clk 00:01:22]} {[%emt 00:00:03]} Nc8
{[%clk 00:00:21]} {[%emt 00:00:02]} 24. a6 {[%clk 00:01:17]} {[%emt 00:00:07]}
b6 {[%clk 00:00:14]} {[%emt 00:00:09]} 25. a7+ {[%clk 00:01:16]} {[%emt
00:00:02]} Nxa7 {[%clk 00:00:13]} {[%emt 00:00:03]} 26. Qa4 {[%clk 00:01:14]}
{[%emt 00:00:02]} Nc8 {[%clk 00:00:05]} {[%emt 00:00:12]} 27. Ra1 {[%clk
00:01:08]} {[%emt 00:00:07]} c6 {[%clk 00:00:06]} {[%emt 00:00:02]} 28. bxc6
{[%clk 00:01:05]} {[%emt 00:00:05]} Qe7 {[%clk 00:00:05]} {[%emt 00:00:02]} 29.
Qa8+ {[%clk 00:01:00]} {[%emt 00:00:07]} Kc7 {[%clk 00:00:07]} 30. Qb7+ {[%clk
00:01:01]} {[%emt 00:00:01]} Kd6 {[%clk 00:00:08]} 31. e5# {[%clk 00:01:02]}
{[%emt 00:00:01]} 1-0

[Event "Blixt-SM 2021"]
[Site "Elite Hotel Marina Plaza, Kungstorget 6, Helsingborg, Sweden"]
[Date "2021.11.14"]
[Round "7.6"]
[White "Wellevit, Tomas"]
[Black "Rajcevski, Dejan"]
[Result "1-0"]
[TimeControl "3 minutes + 2 seconds per move."]
[WhiteFideId "1731963"]
[BlackFideId "1759027"]
[WhiteElo "2113"]
[BlackElo "1977"]

1. e4 {[%clk 00:03:04]} {[%emt 00:05:01]} e5 {[%clk 00:03:03]} {[%emt
00:00:02]} 2. Nf3 {[%clk 00:03:05]} Nf6 {[%clk 00:03:04]} {[%emt 00:00:01]} 3.
d4 {[%clk 00:03:03]} {[%emt 00:00:05]} Nxe4 {[%clk 00:03:04]} {[%emt 00:00:01]}
4. dxe5 {[%clk 00:03:03]} {[%emt 00:00:03]} d5 {[%clk 00:03:05]} 5. Bd3 {[%clk
00:03:04]} {[%emt 00:00:01]} Nc6 {[%clk 00:03:06]} {[%emt 00:00:01]} 6. O-O
{[%clk 00:02:59]} {[%emt 00:00:07]} Bc5 {[%clk 00:03:07]} {[%emt 00:00:01]} 7.
Nbd2 {[%emt 00:00:08]} Bf5 {[%clk 00:02:49]} {[%emt 00:00:15]} 8. Nb3 {[%clk
00:02:57]} {[%emt 00:00:03]} Bb6 {[%clk 00:02:48]} {[%emt 00:00:03]} 9. a4
{[%clk 00:02:58]} {[%emt 00:00:02]} a5 {[%clk 00:02:42]} {[%emt 00:00:07]} 10.
c3 {[%clk 00:02:50]} {[%emt 00:00:09]} O-O {[%clk 00:02:37]} {[%emt 00:00:07]}
11. Nbd4 {[%clk 00:02:51]} {[%emt 00:00:01]} Bxd4 {[%clk 00:02:29]} {[%emt
00:00:10]} 12. cxd4 {[%clk 00:02:51]} {[%emt 00:00:01]} Nb4 {[%clk 00:02:22]}
{[%emt 00:00:10]} 13. Bb1 {[%clk 00:02:52]} c6 {[%clk 00:02:21]} {[%emt
00:00:04]} 14. Ra3 {[%clk 00:02:53]} h6 {[%clk 00:02:09]} {[%emt 00:00:14]} 15.
Nd2 {[%clk 00:02:53]} {[%emt 00:00:02]} Nxd2 {[%clk 00:02:08]} {[%emt
00:00:03]} 16. Bxd2 {[%clk 00:02:53]} Bxb1 {[%clk 00:02:01]} 17. Qxb1 {[%clk
00:02:55]} Qe7 {[%clk 00:01:48]} {[%emt 00:00:15]} 18. Rg3 {[%clk 00:02:54]}
{[%emt 00:00:02]} Kh8 {[%clk 00:01:48]} {[%emt 00:00:03]} 19. Qf5 {[%clk
00:02:52]} {[%emt 00:00:04]} Qe6 {[%clk 00:01:45]} {[%emt 00:00:05]} 20. Qh5
{[%clk 00:02:46]} {[%emt 00:00:07]} f5 {[%clk 00:01:27]} {[%emt 00:00:21]} 21.
Rg6 {[%clk 00:02:44]} {[%emt 00:00:04]} Qf7 {[%clk 00:01:25]} {[%emt 00:00:04]}
22. Bxh6 {[%clk 00:02:40]} {[%emt 00:00:05]} gxh6 {[%clk 00:01:19]} {[%emt
00:00:09]} 23. Rxh6+ {[%clk 00:02:37]} {[%emt 00:00:06]} Kg8 {[%clk 00:01:12]}
{[%emt 00:00:09]} 24. Rg6+ {[%clk 00:02:37]} {[%emt 00:00:01]} Qg7 {[%clk
00:01:13]} 25. Rxg7+ {[%clk 00:02:36]} {[%emt 00:00:04]} Kxg7 {[%clk 00:01:13]}
{[%emt 00:00:01]} 26. Qg5+ {[%clk 00:02:34]} {[%emt 00:00:04]} Kh7 {[%clk
00:00:39]} {[%emt 00:00:36]} 27. f4 {[%clk 00:02:34]} {[%emt 00:00:01]} Rg8
{[%clk 00:00:35]} {[%emt 00:00:07]} 28. Qxf5+ {[%clk 00:02:35]} {[%emt
00:00:01]} Rg6 {[%clk 00:00:36]} {[%emt 00:00:01]} 29. Rf3 {[%clk 00:02:35]}
{[%emt 00:00:02]} Rag8 {[%clk 00:00:34]} {[%emt 00:00:04]} 30. Qf7+ {[%clk
00:01:53]} {[%emt 00:00:44]} R8g7 {[%clk 00:00:33]} {[%emt 00:00:04]} 31. Rh3+
{[%clk 00:01:53]} {[%emt 00:00:02]} Rh6 {[%clk 00:00:35]} 32. Qf5+ {[%clk
00:01:48]} {[%emt 00:00:07]} Rgg6 {[%clk 00:00:32]} {[%emt 00:00:04]} 33. Rg3
{[%clk 00:01:39]} {[%emt 00:00:11]} Kg7 {[%clk 00:00:33]} {[%emt 00:00:01]} 34.
Qf6+ {[%clk 00:01:36]} {[%emt 00:00:04]} Kh7 {[%clk 00:00:32]} {[%emt
00:00:04]} 35. Qf7+ {[%clk 00:01:36]} {[%emt 00:00:02]} 1-0

[Event "Blixt-SM 2021"]
[Site "Elite Hotel Marina Plaza, Kungstorget 6, Helsingborg, Sweden"]
[Date "2021.11.14"]
[Round "9.4"]
[White "Svensson, Mikael"]
[Black "Kucuksari, Kaan"]
[Result "0-1"]
[TimeControl "3 minutes + 2 seconds per move."]
[BlackTitle "FM"]
[WhiteFideId "1716433"]
[BlackFideId "6380166"]
[WhiteElo "2073"]
[BlackElo "2301"]

1. d4 {[%clk 00:03:02]} Nf6 {[%clk 00:03:03]} {[%emt 00:00:02]} 2. Nf3 {[%clk
00:03:03]} g6 {[%clk 00:03:04]} 3. Bg5 {[%clk 00:03:04]} Ne4 {[%clk 00:02:56]}
{[%emt 00:00:11]} 4. Bh4 {[%clk 00:03:02]} {[%emt 00:00:04]} d5 {[%clk
00:02:55]} {[%emt 00:00:03]} 5. Nbd2 {[%clk 00:03:02]} {[%emt 00:00:03]} Bg7
{[%clk 00:02:55]} {[%emt 00:00:01]} 6. e3 {[%clk 00:02:59]} {[%emt 00:00:05]}
c5 {[%clk 00:02:54]} {[%emt 00:00:03]} 7. Nxe4 {[%clk 00:02:48]} {[%emt
00:00:13]} dxe4 {[%clk 00:02:54]} {[%emt 00:00:01]} 8. Nd2 {[%clk 00:02:49]}
cxd4 {[%clk 00:02:51]} {[%emt 00:00:07]} 9. Nxe4 {[%clk 00:02:50]} {[%emt
00:00:02]} Nc6 {[%clk 00:02:45]} {[%emt 00:00:08]} 10. exd4 {[%clk 00:02:29]}
{[%emt 00:00:23]} Nxd4 {[%clk 00:02:27]} {[%emt 00:00:19]} 11. c3 {[%clk
00:02:26]} {[%emt 00:00:05]} Bf5 {[%clk 00:02:26]} {[%emt 00:00:03]} 12. cxd4
{[%clk 00:02:08]} {[%emt 00:00:21]} Bxe4 {[%clk 00:02:26]} {[%emt 00:00:02]} 13.
Bb5+ {[%clk 00:02:00]} {[%emt 00:00:10]} Bc6 {[%clk 00:02:25]} {[%emt
00:00:03]} 14. Bxc6+ {[%clk 00:01:38]} {[%emt 00:00:24]} bxc6 {[%clk 00:02:26]}
{[%emt 00:00:01]} 15. Qf3 {[%clk 00:01:27]} {[%emt 00:00:13]} Qd5 {[%clk
00:02:23]} {[%emt 00:00:05]} 16. Qxd5 {[%clk 00:01:19]} {[%emt 00:00:11]} cxd5
{[%clk 00:02:24]} 17. O-O-O {[%clk 00:01:16]} {[%emt 00:00:05]} Kd7 {[%clk
00:02:17]} {[%emt 00:00:09]} 18. Bg3 {[%clk 00:01:10]} {[%emt 00:00:07]} Rhc8+
{[%clk 00:02:17]} {[%emt 00:00:02]} 19. Kb1 {[%clk 00:01:11]} Rc4 {[%clk
00:02:18]} {[%emt 00:00:02]} 20. Be5 {[%clk 00:01:07]} {[%emt 00:00:06]} f6
{[%clk 00:02:19]} {[%emt 00:00:01]} 21. Bf4 {[%clk 00:01:05]} {[%emt 00:00:03]}
e5 {[%clk 00:02:15]} {[%emt 00:00:06]} 22. Be3 {[%clk 00:00:51]} {[%emt
00:00:16]} e4 {[%clk 00:02:14]} {[%emt 00:00:02]} 23. Rc1 {[%clk 00:00:39]}
{[%emt 00:00:15]} Rac8 {[%clk 00:02:14]} {[%emt 00:00:02]} 24. b3 {[%clk
00:00:37]} {[%emt 00:00:03]} R4c6 {[%clk 00:01:59]} {[%emt 00:00:17]} 25. Rxc6
{[%clk 00:00:38]} {[%emt 00:00:02]} Rxc6 {[%clk 00:02:00]} 26. Rc1 {[%clk
00:00:39]} f5 {[%clk 00:01:56]} {[%emt 00:00:06]} 27. g3 {[%clk 00:00:40]}
{[%emt 00:00:01]} Bf6 {[%clk 00:01:53]} {[%emt 00:00:04]} 28. h4 {[%clk
00:00:41]} {[%emt 00:00:02]} f4 {[%clk 00:01:45]} {[%emt 00:00:10]} 29. Bxf4
{[%clk 00:00:34]} {[%emt 00:00:08]} Rxc1+ {[%clk 00:01:44]} {[%emt 00:00:04]}
30. Kxc1 {[%clk 00:00:35]} {[%emt 00:00:01]} Bxd4 {[%clk 00:01:44]} {[%emt
00:00:02]} 31. Be3 {[%clk 00:00:25]} {[%emt 00:00:12]} Bb6 {[%clk 00:01:40]}
{[%emt 00:00:06]} 32. Kd2 {[%clk 00:00:20]} {[%emt 00:00:07]} d4 {[%clk
00:01:40]} {[%emt 00:00:01]} 33. Bf4 {[%clk 00:00:15]} {[%emt 00:00:07]} Ba5+
{[%clk 00:01:39]} {[%emt 00:00:02]} 34. Ke2 {[%clk 00:00:15]} {[%emt 00:00:03]}
Ke6 {[%clk 00:01:37]} {[%emt 00:00:04]} 35. Bb8 {[%clk 00:00:14]} {[%emt
00:00:03]} d3+ {[%clk 00:01:29]} {[%emt 00:00:10]} 36. Kd1 {[%clk 00:00:09]}
{[%emt 00:00:07]} Bb6 {[%emt 00:00:02]} 37. Ke1 Kd5 {[%clk 00:01:23]} {[%emt
00:00:08]} 38. Bf4 {[%clk 00:00:09]} {[%emt 00:00:04]} Kd4 {[%clk 00:00:50]}
{[%emt 00:00:35]} 39. Bd2 {[%clk 00:00:10]} {[%emt 00:00:01]} h5 {[%emt
00:00:14]} 40. a4 Bc7 {[%clk 00:00:30]} {[%emt 00:00:08]} 41. Be3+ {[%clk
00:00:12]} {[%emt 00:00:02]} Kc3 {[%clk 00:00:31]} 42. Bxa7 {[%clk 00:00:13]}
{[%emt 00:00:02]} Kc2 {[%clk 00:00:32]} {[%emt 00:00:01]} 43. Be3 {[%clk
00:00:08]} {[%emt 00:00:07]} Ba5+ {[%clk 00:00:33]} {[%emt 00:00:01]} 44. Kf1
{[%clk 00:00:08]} {[%emt 00:00:02]} d2 {[%clk 00:00:31]} {[%emt 00:00:04]} 45.
Bxd2 {[%clk 00:00:08]} {[%emt 00:00:02]} Kxd2 {[%clk 00:00:31]} {[%emt
00:00:02]} 0-1

[Event "Blixt-SM 2021"]
[Site "Elite Hotel Marina Plaza, Kungstorget 6, Helsingborg, Sweden"]
[Date "2021.11.14"]
[Round "11.3"]
[White "Jepson, Christian"]
[Black "Wellevit, Tomas"]
[Result "0-1"]
[TimeControl "3 minutes + 2 seconds per move."]
[WhiteTitle "IM"]
[WhiteFideId "1701185"]
[BlackFideId "1731963"]
[WhiteElo "2412"]
[BlackElo "2113"]

1. Nf3 {[%clk 00:03:02]} {[%emt 00:00:02]} d5 {[%clk 00:03:03]} {[%emt
00:00:01]} 2. c4 {[%clk 00:03:04]} {[%emt 00:00:01]} d4 {[%clk 00:03:01]}
{[%emt 00:00:04]} 3. g3 {[%clk 00:03:04]} {[%emt 00:00:01]} c5 {[%clk
00:03:02]} 4. a3 {[%clk 00:03:04]} {[%emt 00:00:03]} a5 {[%clk 00:03:03]} 5. e3
{[%clk 00:03:03]} {[%emt 00:00:03]} Nc6 {[%clk 00:03:00]} {[%emt 00:00:04]} 6.
exd4 {[%clk 00:03:03]} cxd4 {[%clk 00:03:01]} {[%emt 00:00:02]} 7. d3 {[%clk
00:03:03]} {[%emt 00:00:01]} e5 {[%clk 00:03:01]} {[%emt 00:00:02]} 8. Bg2
{[%clk 00:03:05]} Bd6 {[%clk 00:03:02]} 9. O-O {[%clk 00:03:05]} {[%emt
00:00:02]} Nge7 {[%clk 00:03:04]} 10. Nbd2 {[%clk 00:03:00]} {[%emt 00:00:06]}
f5 {[%clk 00:02:54]} {[%emt 00:00:12]} 11. Re1 {[%clk 00:02:58]} {[%emt
00:00:04]} O-O {[%clk 00:02:55]} {[%emt 00:00:02]} 12. c5 {[%clk 00:02:55]}
{[%emt 00:00:05]} Bc7 {[%clk 00:02:52]} {[%emt 00:00:05]} 13. Nc4 {[%clk
00:02:53]} {[%emt 00:00:04]} Ng6 {[%clk 00:02:49]} {[%emt 00:00:06]} 14. Rb1
{[%clk 00:02:24]} {[%emt 00:00:31]} Be6 {[%clk 00:02:43]} {[%emt 00:00:08]} 15.
Qa4 {[%clk 00:02:13]} {[%emt 00:00:12]} Bd5 {[%clk 00:02:26]} {[%emt 00:00:20]}
16. Qc2 {[%clk 00:01:41]} {[%emt 00:00:34]} Qe7 {[%clk 00:02:24]} {[%emt
00:00:05]} 17. b4 {[%clk 00:01:41]} {[%emt 00:00:02]} axb4 {[%clk 00:02:24]}
{[%emt 00:00:02]} 18. axb4 {[%clk 00:01:41]} {[%emt 00:00:01]} e4 {[%clk
00:01:40]} {[%emt 00:00:46]} 19. Bd2 {[%clk 00:01:11]} {[%emt 00:00:33]} Qf7
{[%clk 00:01:32]} {[%emt 00:00:10]} 20. Ng5 {[%clk 00:01:11]} {[%emt 00:00:02]}
Qf6 {[%clk 00:01:29]} {[%emt 00:00:04]} 21. b5 {[%clk 00:01:01]} {[%emt
00:00:13]} Nce7 {[%clk 00:01:22]} {[%emt 00:00:09]} 22. Rf1 {[%clk 00:00:38]}
{[%emt 00:00:25]} e3 {[%clk 00:01:20]} {[%emt 00:00:04]} 23. fxe3 {[%clk
00:00:36]} {[%emt 00:00:04]} Bxg2 {[%clk 00:01:21]} 24. Kxg2 {[%clk 00:00:35]}
{[%emt 00:00:03]} Qxg5 {[%clk 00:01:21]} {[%emt 00:00:02]} 25. exd4 {[%clk
00:00:27]} {[%emt 00:00:11]} Qg4 {[%clk 00:01:15]} {[%emt 00:00:07]} 26. Qd1
{[%clk 00:00:04]} {[%emt 00:00:25]} Qxd4 {[%clk 00:01:14]} {[%emt 00:00:03]} 27.
Be3 {[%clk 00:00:05]} {[%emt 00:00:02]} Qd5+ {[%clk 00:01:15]} {[%emt
00:00:01]} 28. Qf3 {[%clk 00:00:06]} Qxf3+ {[%clk 00:01:13]} {[%emt 00:00:04]}
29. Rxf3 {[%clk 00:00:07]} {[%emt 00:00:01]} Nd5 {[%clk 00:01:11]} {[%emt
00:00:04]} 30. Bd4 {[%clk 00:00:07]} {[%emt 00:00:02]} f4 {[%clk 00:01:11]}
{[%emt 00:00:01]} 31. b6 {[%clk 00:00:06]} {[%emt 00:00:03]} Bd8 {[%clk
00:01:08]} {[%emt 00:00:06]} 32. Kh1 {[%clk 00:00:06]} {[%emt 00:00:01]} Bg5
{[%clk 00:01:05]} {[%emt 00:00:05]} 33. Rbf1 {[%clk 00:00:06]} {[%emt
00:00:02]} fxg3 {[%clk 00:01:06]} {[%emt 00:00:02]} 34. Rxf8+ {[%clk 00:00:07]}
Rxf8 {[%clk 00:01:07]} {[%emt 00:00:02]} 35. Rxf8+ {[%clk 00:00:09]} Nxf8
{[%clk 00:01:08]} 36. Nd6 {[%clk 00:00:10]} gxh2 {[%clk 00:01:03]} {[%emt
00:00:07]} 37. Nxb7 {[%clk 00:00:11]} Bf4 {[%clk 00:01:04]} 38. c6 {[%clk
00:00:08]} {[%emt 00:00:05]} Ne6 {[%clk 00:01:03]} {[%emt 00:00:03]} 39. Nc5
{[%clk 00:00:06]} {[%emt 00:00:03]} Nxd4 {[%clk 00:01:03]} {[%emt 00:00:02]} 40.
c7 {[%clk 00:00:03]} {[%emt 00:00:05]} Nxc7 {[%clk 00:01:03]} {[%emt 00:00:02]}
41. bxc7 {[%clk 00:00:04]} Bxc7 {[%clk 00:01:04]} 42. Ne4 {[%clk 00:00:05]} Nf5
{[%clk 00:01:04]} {[%emt 00:00:02]} 0-1

[Event "Blixt-SM 2021"]
[Site "Elite Hotel Marina Plaza, Kungstorget 6, Helsingborg, Sweden"]
[Date "2021.11.14"]
[Round "13.1"]
[White "Rosell, Tomas"]
[Black "Smith, Axel"]
[Result "1/2-1/2"]
[TimeControl "3 minutes + 2 seconds per move."]
[BlackTitle "GM"]
[WhiteFideId "1707132"]
[BlackFideId "1707930"]
[WhiteElo "2070"]
[BlackElo "2473"]

1. e4 {[%clk 00:03:03]} c5 {[%clk 00:03:04]} 2. Nf3 {[%clk 00:03:04]} e6 {[%clk
00:03:06]} 3. Nc3 {[%clk 00:03:05]} Nc6 {[%clk 00:03:02]} {[%emt 00:00:07]} 4.
d4 {[%clk 00:03:06]} cxd4 {[%clk 00:03:03]} {[%emt 00:00:02]} 5. Nxd4 {[%clk
00:03:08]} Nf6 {[%clk 00:03:05]} {[%emt 00:00:01]} 6. Be2 {[%clk 00:03:09]} Bb4
{[%clk 00:03:02]} {[%emt 00:00:05]} 7. O-O {[%clk 00:03:10]} {[%emt 00:00:01]}
Bxc3 {[%clk 00:02:41]} {[%emt 00:00:23]} 8. bxc3 {[%clk 00:03:10]} {[%emt
00:00:01]} Nxe4 {[%clk 00:02:42]} {[%emt 00:00:02]} 9. Bd3 {[%clk 00:03:12]}
Nf6 {[%clk 00:02:29]} {[%emt 00:00:15]} 10. Ba3 {[%clk 00:03:09]} {[%emt
00:00:05]} Nxd4 {[%clk 00:02:22]} {[%emt 00:00:09]} 11. cxd4 {[%clk 00:03:06]}
{[%emt 00:00:04]} d6 {[%clk 00:02:22]} {[%emt 00:00:02]} 12. Qf3 {[%clk
00:02:40]} {[%emt 00:00:28]} O-O {[%clk 00:02:21]} {[%emt 00:00:03]} 13. Qg3
{[%clk 00:02:41]} Re8 {[%clk 00:02:05]} {[%emt 00:00:18]} 14. Bxd6 {[%clk
00:02:30]} {[%emt 00:00:13]} Bd7 {[%clk 00:01:46]} {[%emt 00:00:22]} 15. Be5
{[%clk 00:02:29]} {[%emt 00:00:03]} Bc6 {[%clk 00:01:44]} {[%emt 00:00:04]} 16.
Rae1 {[%clk 00:02:20]} {[%emt 00:00:10]} g6 {[%clk 00:01:38]} {[%emt 00:00:09]}
17. Qg5 {[%clk 00:02:02]} {[%emt 00:00:20]} Nd7 {[%clk 00:01:33]} {[%emt
00:00:07]} 18. Qh6 {[%clk 00:01:47]} {[%emt 00:00:16]} Nxe5 {[%clk 00:01:29]}
{[%emt 00:00:06]} 19. dxe5 {[%clk 00:01:39]} {[%emt 00:00:10]} Qe7 {[%clk
00:01:23]} {[%emt 00:00:07]} 20. Re3 {[%clk 00:01:38]} {[%emt 00:00:03]} Qf8
{[%clk 00:01:25]} 21. Qh4 {[%clk 00:01:39]} Qe7 {[%clk 00:01:24]} {[%emt
00:00:03]} 22. Qh6 {[%clk 00:01:38]} {[%emt 00:00:04]} Qf8 {[%clk 00:01:25]} 23.
Qh4 {[%clk 00:01:39]} Qe7 {[%clk 00:01:21]} {[%emt 00:00:07]} 24. Qh6 {[%clk
00:01:38]} {[%emt 00:00:03]} 1/2-1/2